[Event "Titled Tuesday Blitz March 07 Late 2023"]
[White "Mazurkiewicz, Michal"]
[Black "Pakleza, Zbigniew"]
[WhiteFideId "1124943"]
[BlackFideId "1119290"]
[WhiteElo "2054"]
[BlackElo "2410"]
[Result "0-1"]
[Round "01"]
[TimeControl "180+2"]
[Date "2023.03.07"]
[WhiteClock "0:00:02"]
[BlackClock "0:00:29"]

1. e4 {[%clk 0:02:59]}  d6 {[%clk 0:02:59]} 2. Nf3 {[%clk 0:02:56]}  Nf6 {[%clk 0:03:00]} 3. d3 {[%clk 0:02:57]}  Bg4 {[%clk 0:03:00]} 4. g3 {[%clk 0:02:53]}  e6 {[%clk 0:03:00]} 5. Bg2 {[%clk 0:02:53]}  Be7 {[%clk 0:03:00]} 6. O-O {[%clk 0:02:53]}  O-O {[%clk 0:03:00]} 7. h3 {[%clk 0:02:54]}  Bh5 {[%clk 0:03:00]} 8. Re1 {[%clk 0:02:52]}  d5 {[%clk 0:02:59]} 9. e5 {[%clk 0:02:48]}  Nfd7 {[%clk 0:02:59]} 10. c3 {[%clk 0:02:28]}  c5 {[%clk 0:02:59]} 11. Nbd2 {[%clk 0:02:28]}  Nc6 {[%clk 0:02:59]} 12. g4 {[%clk 0:02:27]}  Bg6 {[%clk 0:02:59]} 13. Nf1 {[%clk 0:02:28]}  b5 {[%clk 0:02:50]} 14. Ng3 {[%clk 0:02:23]}  Rc8 {[%clk 0:02:47]} 15. Qe2 {[%clk 0:02:10]}  Re8 {[%clk 0:02:40]} 16. Nh2 {[%clk 0:02:03]}  Ndxe5 {[%clk 0:02:22]} 17. f4 {[%clk 0:02:01]}  Bh4 {[%clk 0:02:07]} 18. fxe5 {[%clk 0:01:33]}  Bxg3 {[%clk 0:02:07]} 19. Rf1 {[%clk 0:01:33]}  Nxe5 {[%clk 0:01:55]} 20. Rd1 {[%clk 0:01:33]}  Nc6 {[%clk 0:01:46]} 21. a4 {[%clk 0:01:01]}  b4 {[%clk 0:01:46]} 22. a5 {[%clk 0:01:01]}  Nxa5 {[%clk 0:01:35]} 23. Be3 {[%clk 0:00:32]}  bxc3 {[%clk 0:01:08]} 24. bxc3 {[%clk 0:00:32]}  Bb8 {[%clk 0:00:53]} 25. Rdb1 {[%clk 0:00:31]}  c4 {[%clk 0:00:45]} 26. Rb5 {[%clk 0:00:28]}  cxd3 {[%clk 0:00:42]} 27. Qf2 {[%clk 0:00:22]}  Nc4 {[%clk 0:00:42]} 28. Bxa7 {[%clk 0:00:14]}  Bxa7 {[%clk 0:00:40]} 29. Qxa7 {[%clk 0:00:12]}  Ra8 {[%clk 0:00:37]} 30. Qxa8 {[%clk 0:00:11]}  Qxa8 {[%clk 0:00:37]} 31. Rxa8 {[%clk 0:00:11]}  Rxa8 {[%clk 0:00:38]} 32. Nf1 {[%clk 0:00:03]}  d2 {[%clk 0:00:33]} 33. Bf3 {[%clk 0:00:04]}  Bc2 {[%clk 0:00:30]} 34. Kf2 {[%clk 0:00:02]}  h6 {[%clk 0:00:29]} 0-1


[Site "https://www.chess.com"]

[Event "Titled Tuesday Blitz March 07 Late 2023"]
[White "Holt, Conrad"]
[Black "Koutlas, Nikolaos"]
[WhiteFideId "2034387"]
[BlackFideId "25827138"]
[WhiteElo "2592"]
[BlackElo "2215"]
[Result "1-0"]
[Round "01"]
[TimeControl "180+2"]
[Date "2023.03.07"]
[WhiteClock "0:02:29"]
[BlackClock "0:01:08"]

1. d4 {[%clk 0:02:57]}  Nf6 {[%clk 0:02:57]} 2. c4 {[%clk 0:02:58]}  e6 {[%clk 0:02:55]} 3. Nc3 {[%clk 0:02:58]}  Bb4 {[%clk 0:02:52]} 4. Qc2 {[%clk 0:02:58]}  d6 {[%clk 0:02:50]} 5. Nf3 {[%clk 0:02:52]}  c5 {[%clk 0:02:46]} 6. dxc5 {[%clk 0:02:48]}  Bxc5 {[%clk 0:02:43]} 7. Bg5 {[%clk 0:02:47]}  h6 {[%clk 0:02:42]} 8. Bh4 {[%clk 0:02:47]}  Nc6 {[%clk 0:02:32]} 9. e3 {[%clk 0:02:44]}  g5 {[%clk 0:02:06]} 10. Bg3 {[%clk 0:02:43]}  h5 {[%clk 0:02:02]} 11. h4 {[%clk 0:02:42]}  g4 {[%clk 0:01:53]} 12. Ng5 {[%clk 0:02:42]}  Ne5 {[%clk 0:01:46]} 13. O-O-O {[%clk 0:02:40]}  Qa5 {[%clk 0:01:44]} 14. Qa4+ {[%clk 0:02:39]}  Qxa4 {[%clk 0:01:40]} 15. Nxa4 {[%clk 0:02:40]}  Nfd7 {[%clk 0:01:22]} 16. a3 {[%clk 0:02:35]}  a5 {[%clk 0:01:17]} 17. Ne4 {[%clk 0:02:33]}  Ke7 {[%clk 0:01:13]} 18. Naxc5 {[%clk 0:02:31]}  dxc5 {[%clk 0:01:13]} 19. Nxc5 {[%clk 0:02:31]}  Nxc4 {[%clk 0:01:08]} 20. Bxc4 {[%clk 0:02:29]}  Nxc5 {[%clk 0:01:08]} 21. Bd6+ {[%clk 0:02:29]} 1-0


[Site "https://www.chess.com"]

[Event "Titled Tuesday Blitz March 07 Late 2023"]
[White "Elissalt Cardenas, Hector"]
[Black "Harsh Suresh"]
[WhiteFideId "3500632"]
[BlackFideId "45018464"]
[WhiteElo "2202"]
[BlackElo "2227"]
[Result "0-1"]
[Round "01"]
[TimeControl "180+2"]
[Date "2023.03.07"]
[WhiteClock "0:01:12"]
[BlackClock "0:01:21"]

1. d4 {[%clk 0:02:54]}  Nf6 {[%clk 0:02:59]} 2. c4 {[%clk 0:02:47]}  e6 {[%clk 0:02:59]} 3. Nc3 {[%clk 0:02:41]}  Bb4 {[%clk 0:02:58]} 4. Bd2 {[%clk 0:02:41]}  O-O {[%clk 0:02:57]} 5. Qc2 {[%clk 0:02:37]}  d5 {[%clk 0:02:55]} 6. cxd5 {[%clk 0:02:20]}  exd5 {[%clk 0:02:54]} 7. e3 {[%clk 0:02:17]}  c6 {[%clk 0:02:53]} 8. Bd3 {[%clk 0:02:17]}  Re8 {[%clk 0:02:50]} 9. Nge2 {[%clk 0:02:17]}  Bg4 {[%clk 0:02:47]} 10. Ng3 {[%clk 0:02:04]}  Nbd7 {[%clk 0:02:13]} 11. h3 {[%clk 0:02:01]}  Be6 {[%clk 0:02:12]} 12. O-O {[%clk 0:02:00]}  g6 {[%clk 0:02:12]} 13. Nce2 {[%clk 0:02:00]}  Bd6 {[%clk 0:02:11]} 14. b4 {[%clk 0:02:00]}  a6 {[%clk 0:02:04]} 15. f3 {[%clk 0:01:56]}  Qc7 {[%clk 0:01:59]} 16. f4 {[%clk 0:01:51]}  b5 {[%clk 0:01:48]} 17. a4 {[%clk 0:01:49]}  Nb6 {[%clk 0:01:48]} 18. f5 {[%clk 0:01:35]}  Bxg3 {[%clk 0:01:42]} 19. fxe6 {[%clk 0:01:32]}  Rxe6 {[%clk 0:01:41]} 20. axb5 {[%clk 0:01:30]}  cxb5 {[%clk 0:01:27]} 21. Nf4 {[%clk 0:01:15]}  Qxc2 {[%clk 0:01:25]} 22. Bxc2 {[%clk 0:01:15]}  Bxf4 {[%clk 0:01:21]} 23. Rxf4 {[%clk 0:01:12]}  Nc4 {[%clk 0:01:21]} 24. Bd3 {[%clk 0:01:12]}  Nxd2 {[%clk 0:01:21]} 0-1


[Site "https://www.chess.com"]

[Event "Titled Tuesday Blitz March 07 Late 2023"]
[White "Milikow, Yoav"]
[Black "Gasparyan, David"]
[WhiteFideId "2822237"]
[BlackFideId "13311980"]
[WhiteElo "2410"]
[BlackElo "2439"]
[Result "1-0"]
[Round "01"]
[TimeControl "180+2"]
[Date "2023.03.07"]
[WhiteClock "0:00:26"]
[BlackClock "0:00:07"]

1. c4 {[%clk 0:03:00]}  c5 {[%clk 0:02:59]} 2. Nc3 {[%clk 0:02:59]}  Nc6 {[%clk 0:02:59]} 3. g3 {[%clk 0:03:00]}  g6 {[%clk 0:02:59]} 4. Bg2 {[%clk 0:03:00]}  Bg7 {[%clk 0:03:00]} 5. Nf3 {[%clk 0:03:01]}  Nf6 {[%clk 0:03:00]} 6. d4 {[%clk 0:03:00]}  cxd4 {[%clk 0:02:54]} 7. Nxd4 {[%clk 0:03:00]}  O-O {[%clk 0:02:54]} 8. O-O {[%clk 0:03:01]}  Qb6 {[%clk 0:02:41]} 9. Nb3 {[%clk 0:02:57]}  d6 {[%clk 0:02:41]} 10. Bg5 {[%clk 0:02:55]}  Qd8 {[%clk 0:02:27]} 11. Rc1 {[%clk 0:02:53]}  Bf5 {[%clk 0:02:26]} 12. Qd2 {[%clk 0:02:51]}  Rc8 {[%clk 0:02:23]} 13. Nd5 {[%clk 0:02:46]}  Ne4 {[%clk 0:02:18]} 14. Bxe4 {[%clk 0:02:44]}  Bxe4 {[%clk 0:02:19]} 15. Ne3 {[%clk 0:02:39]}  h6 {[%clk 0:02:17]} 16. f3 {[%clk 0:02:35]}  hxg5 {[%clk 0:01:56]} 17. fxe4 {[%clk 0:02:36]}  Ne5 {[%clk 0:01:56]} 18. Kg2 {[%clk 0:02:32]}  g4 {[%clk 0:01:54]} 19. Nd4 {[%clk 0:02:31]}  Bh6 {[%clk 0:01:51]} 20. b3 {[%clk 0:02:28]}  e6 {[%clk 0:01:45]} 21. Rcd1 {[%clk 0:02:27]}  Qg5 {[%clk 0:01:44]} 22. Ndc2 {[%clk 0:02:20]}  Rfd8 {[%clk 0:01:36]} 23. Qe1 {[%clk 0:02:16]}  Qh5 {[%clk 0:01:33]} 24. Qf2 {[%clk 0:02:16]}  Bg5 {[%clk 0:01:25]} 25. Kg1 {[%clk 0:02:15]}  Kg7 {[%clk 0:01:24]} 26. Ng2 {[%clk 0:02:11]}  Qh6 {[%clk 0:01:01]} 27. Nf4 {[%clk 0:02:11]}  Rd7 {[%clk 0:01:00]} 28. Ne1 {[%clk 0:02:06]}  Rh8 {[%clk 0:01:00]} 29. Ned3 {[%clk 0:02:03]}  Re7 {[%clk 0:00:52]} 30. Qg2 {[%clk 0:01:53]}  Nxd3 {[%clk 0:00:40]} 31. Rxd3 {[%clk 0:01:52]}  Rd8 {[%clk 0:00:24]} 32. e5 {[%clk 0:01:48]}  d5 {[%clk 0:00:23]} 33. cxd5 {[%clk 0:01:34]}  exd5 {[%clk 0:00:23]} 34. Rxd5 {[%clk 0:01:30]}  Rde8 {[%clk 0:00:22]} 35. Qe4 {[%clk 0:01:27]}  Rh8 {[%clk 0:00:19]} 36. Rf2 {[%clk 0:01:27]}  Rc8 {[%clk 0:00:15]} 37. Rd1 {[%clk 0:01:25]}  Rce8 {[%clk 0:00:14]} 38. e6 {[%clk 0:01:23]}  Bxf4 {[%clk 0:00:15]} 39. Qd4+ {[%clk 0:01:19]}  f6 {[%clk 0:00:10]} 40. Rxf4 {[%clk 0:01:12]}  Rxe6 {[%clk 0:00:10]} 41. Rdf1 {[%clk 0:01:10]}  Qg5 {[%clk 0:00:05]} 42. R1f2 {[%clk 0:00:57]}  R8e7 {[%clk 0:00:05]} 43. Rxg4 {[%clk 0:00:54]}  Qc1+ {[%clk 0:00:03]} 44. Kg2 {[%clk 0:00:53]}  Qc6+ {[%clk 0:00:03]} 45. e4 {[%clk 0:00:51]}  Rxe4 {[%clk 0:00:03]} 46. Rxe4 {[%clk 0:00:47]}  Rxe4 {[%clk 0:00:04]} 47. Qd1 {[%clk 0:00:25]}  Re1+ {[%clk 0:00:02]} 48. Qf3 {[%clk 0:00:25]}  Qxf3+ {[%clk 0:00:03]} 49. Kxf3 {[%clk 0:00:25]}  Re5 {[%clk 0:00:03]} 50. g4 {[%clk 0:00:25]}  Re7 {[%clk 0:00:04]} 51. Rc2 {[%clk 0:00:25]}  Rc7 {[%clk 0:00:05]} 52. Rxc7+ {[%clk 0:00:24]}  Kh6 {[%clk 0:00:05]} 53. Rxb7 {[%clk 0:00:25]}  a5 {[%clk 0:00:05]} 54. h4 {[%clk 0:00:25]}  a4 {[%clk 0:00:06]} 55. bxa4 {[%clk 0:00:25]}  g5 {[%clk 0:00:05]} 56. h5 {[%clk 0:00:25]}  f5 {[%clk 0:00:05]} 57. gxf5 {[%clk 0:00:26]}  g4+ {[%clk 0:00:06]} 58. Kf4 {[%clk 0:00:26]}  g3 {[%clk 0:00:07]} 59. Kxg3 {[%clk 0:00:26]}  Kg5 {[%clk 0:00:07]} 60. a5 {[%clk 0:00:25]}  Kf6 {[%clk 0:00:07]} 61. a6 {[%clk 0:00:26]} 1-0


[Site "https://www.chess.com"]

[Event "Titled Tuesday Blitz March 07 Late 2023"]
[White "Kraus, Tomas"]
[Black "Mahdavi, Reza"]
[WhiteFideId "331708"]
[BlackFideId "12595926"]
[WhiteElo "2389"]
[BlackElo "2208"]
[Result "0-1"]
[Round "01"]
[TimeControl "180+2"]
[Date "2023.03.07"]
[WhiteClock "0:00:01"]
[BlackClock "0:00:04"]

1. e4 {[%clk 0:02:53]}  c5 {[%clk 0:02:50]} 2. Nc3 {[%clk 0:02:54]}  e6 {[%clk 0:02:51]} 3. f4 {[%clk 0:02:54]}  Nc6 {[%clk 0:02:51]} 4. d3 {[%clk 0:02:54]}  a6 {[%clk 0:02:52]} 5. Nf3 {[%clk 0:02:53]}  b5 {[%clk 0:02:52]} 6. g3 {[%clk 0:02:54]}  Bb7 {[%clk 0:02:53]} 7. Bg2 {[%clk 0:02:54]}  d6 {[%clk 0:02:54]} 8. O-O {[%clk 0:02:54]}  Nge7 {[%clk 0:02:49]} 9. Be3 {[%clk 0:02:54]}  Qc7 {[%clk 0:02:49]} 10. d4 {[%clk 0:02:53]}  cxd4 {[%clk 0:02:49]} 11. Nxd4 {[%clk 0:02:53]}  Nxd4 {[%clk 0:02:50]} 12. Bxd4 {[%clk 0:02:53]}  Nc6 {[%clk 0:02:51]} 13. Be3 {[%clk 0:02:48]}  Be7 {[%clk 0:02:51]} 14. Qg4 {[%clk 0:02:38]}  O-O {[%clk 0:02:41]} 15. f5 {[%clk 0:02:37]}  Ne5 {[%clk 0:02:40]} 16. Qh3 {[%clk 0:02:31]}  b4 {[%clk 0:02:39]} 17. Na4 {[%clk 0:02:19]}  exf5 {[%clk 0:02:34]} 18. Nb6 {[%clk 0:02:07]}  Rad8 {[%clk 0:02:27]} 19. Qxf5 {[%clk 0:02:05]}  Qxc2 {[%clk 0:02:13]} 20. Rac1 {[%clk 0:01:46]}  Qd3 {[%clk 0:02:00]} 21. Rfe1 {[%clk 0:01:29]}  Bf6 {[%clk 0:02:00]} 22. Rcd1 {[%clk 0:01:18]}  Qb5 {[%clk 0:01:56]} 23. Nd5 {[%clk 0:01:16]}  Bxd5 {[%clk 0:01:56]} 24. exd5 {[%clk 0:01:17]}  Rfe8 {[%clk 0:01:55]} 25. Be4 {[%clk 0:01:07]}  Ng6 {[%clk 0:01:39]} 26. Bf4 {[%clk 0:00:58]}  Bxb2 {[%clk 0:01:27]} 27. h4 {[%clk 0:00:57]}  Be5 {[%clk 0:01:09]} 28. h5 {[%clk 0:00:52]}  Nf8 {[%clk 0:01:00]} 29. Rf1 {[%clk 0:00:16]}  Bxf4 {[%clk 0:00:42]} 30. Rxf4 {[%clk 0:00:11]}  Re7 {[%clk 0:00:43]} 31. Rdf1 {[%clk 0:00:11]}  Rde8 {[%clk 0:00:42]} 32. h6 {[%clk 0:00:11]}  Qc5+ {[%clk 0:00:35]} 33. Kg2 {[%clk 0:00:10]}  Qd4 {[%clk 0:00:30]} 34. Qg5 {[%clk 0:00:09]}  Rxe4 {[%clk 0:00:17]} 35. hxg7 {[%clk 0:00:09]}  Ng6 {[%clk 0:00:16]} 36. Rxf7 {[%clk 0:00:06]}  Re2+ {[%clk 0:00:16]} 37. Kh3 {[%clk 0:00:06]}  Qd2 {[%clk 0:00:09]} 38. Rf8+ {[%clk 0:00:06]}  Kxg7 {[%clk 0:00:09]} 39. Qf6+ {[%clk 0:00:05]}  Kh6 {[%clk 0:00:08]} 40. Rh1 {[%clk 0:00:01]}  Qxd5 {[%clk 0:00:04]} 41. Rxe8 {[%clk 0:00:01]}  Qxh1+ {[%clk 0:00:04]} 0-1


[Site "https://www.chess.com"]

[Event "Titled Tuesday Blitz March 07 Late 2023"]
[White "Yanchenko, Roman"]
[Black "Brozyna, Mateusz"]
[WhiteFideId "4137329"]
[BlackFideId "21816140"]
[WhiteElo "2491"]
[BlackElo "2189"]
[Result "0-1"]
[Round "01"]
[TimeControl "180+2"]
[Date "2023.03.07"]
[WhiteClock "0:00:26"]
[BlackClock "0:00:10"]

1. d4 {[%clk 0:02:54]}  Nf6 {[%clk 0:02:59]} 2. Nf3 {[%clk 0:02:54]}  g6 {[%clk 0:03:00]} 3. c4 {[%clk 0:02:55]}  Bg7 {[%clk 0:02:59]} 4. Nc3 {[%clk 0:02:56]}  d6 {[%clk 0:03:00]} 5. Bf4 {[%clk 0:02:56]}  O-O {[%clk 0:03:00]} 6. e3 {[%clk 0:02:56]}  c5 {[%clk 0:03:01]} 7. Be2 {[%clk 0:02:56]}  b6 {[%clk 0:03:01]} 8. O-O {[%clk 0:02:57]}  Bb7 {[%clk 0:03:02]} 9. h3 {[%clk 0:02:57]}  Nbd7 {[%clk 0:03:02]} 10. Qd2 {[%clk 0:02:56]}  Ne4 {[%clk 0:02:59]} 11. Nxe4 {[%clk 0:02:56]}  Bxe4 {[%clk 0:02:59]} 12. Rfd1 {[%clk 0:02:56]}  Rc8 {[%clk 0:02:59]} 13. Rac1 {[%clk 0:02:56]}  h6 {[%clk 0:02:56]} 14. b3 {[%clk 0:02:56]}  g5 {[%clk 0:02:56]} 15. Bg3 {[%clk 0:02:55]}  f5 {[%clk 0:02:54]} 16. dxc5 {[%clk 0:02:52]}  bxc5 {[%clk 0:02:51]} 17. Ne1 {[%clk 0:02:52]}  Nf6 {[%clk 0:02:38]} 18. f4 {[%clk 0:02:48]}  Ba8 {[%clk 0:02:28]} 19. Bf3 {[%clk 0:02:48]}  Ne4 {[%clk 0:02:25]} 20. Bxe4 {[%clk 0:02:48]}  Bxe4 {[%clk 0:02:26]} 21. Qe2 {[%clk 0:02:47]}  Qe8 {[%clk 0:02:23]} 22. Nf3 {[%clk 0:02:44]}  Qh5 {[%clk 0:02:19]} 23. Kf2 {[%clk 0:02:43]}  Rce8 {[%clk 0:02:05]} 24. Ne1 {[%clk 0:02:31]}  Qg6 {[%clk 0:01:59]} 25. Nf3 {[%clk 0:02:30]}  Kh8 {[%clk 0:01:57]} 26. Nd2 {[%clk 0:02:29]}  Bc6 {[%clk 0:01:53]} 27. Nf3 {[%clk 0:02:28]}  Bf6 {[%clk 0:01:49]} 28. Kf1 {[%clk 0:01:56]}  Rg8 {[%clk 0:01:48]} 29. fxg5 {[%clk 0:01:51]}  hxg5 {[%clk 0:01:47]} 30. Be1 {[%clk 0:01:52]}  g4 {[%clk 0:01:35]} 31. hxg4 {[%clk 0:01:48]}  fxg4 {[%clk 0:01:35]} 32. Nh4 {[%clk 0:01:08]}  Qh5 {[%clk 0:01:29]} 33. g3 {[%clk 0:01:08]}  Ref8 {[%clk 0:01:22]} 34. Kg1 {[%clk 0:01:08]}  Bxh4 {[%clk 0:00:40]} 35. Qh2 {[%clk 0:01:07]}  Rf3 {[%clk 0:00:34]} 36. Rc2 {[%clk 0:00:41]}  Rgf8 {[%clk 0:00:33]} 37. Bf2 {[%clk 0:00:38]}  Kg8 {[%clk 0:00:31]} 38. e4 {[%clk 0:00:32]}  Rxf2 {[%clk 0:00:24]} 39. Rxf2 {[%clk 0:00:25]}  Rxf2 {[%clk 0:00:24]} 40. Kxf2 {[%clk 0:00:18]}  Qf7+ {[%clk 0:00:22]} 41. Kg1 {[%clk 0:00:19]}  Bf6 {[%clk 0:00:22]} 42. Qe2 {[%clk 0:00:16]}  Qg6 {[%clk 0:00:19]} 43. Re1 {[%clk 0:00:05]}  Bd4+ {[%clk 0:00:19]} 44. Kg2 {[%clk 0:00:05]}  Kf7 {[%clk 0:00:10]} 45. Rf1+ {[%clk 0:00:05]}  Ke6 {[%clk 0:00:09]} 46. Rf4 {[%clk 0:00:06]}  Kd7 {[%clk 0:00:06]} 47. Qxg4+ {[%clk 0:00:06]}  Qxg4 {[%clk 0:00:06]} 48. Rxg4 {[%clk 0:00:07]}  Bf6 {[%clk 0:00:07]} 49. Kf3 {[%clk 0:00:08]}  Ke6 {[%clk 0:00:07]} 50. Rg8 {[%clk 0:00:08]}  Ke5 {[%clk 0:00:07]} 51. Rg4 {[%clk 0:00:08]}  Kd4 {[%clk 0:00:05]} 52. Rf4 {[%clk 0:00:09]}  Be5 {[%clk 0:00:05]} 53. Rh4 {[%clk 0:00:09]}  a5 {[%clk 0:00:04]} 54. Kf2 {[%clk 0:00:08]}  Kc3 {[%clk 0:00:04]} 55. g4 {[%clk 0:00:08]}  Bxe4 {[%clk 0:00:04]} 56. g5 {[%clk 0:00:09]}  Bd3 {[%clk 0:00:05]} 57. Rh3 {[%clk 0:00:09]}  Bd4+ {[%clk 0:00:06]} 58. Ke1 {[%clk 0:00:09]}  Kc2 {[%clk 0:00:06]} 59. Rh2+ {[%clk 0:00:09]}  Kc3 {[%clk 0:00:06]} 60. Rg2 {[%clk 0:00:10]}  Bg6 {[%clk 0:00:06]} 61. Rg3+ {[%clk 0:00:10]}  Kb4 {[%clk 0:00:07]} 62. Rg2 {[%clk 0:00:10]}  Ka3 {[%clk 0:00:07]} 63. Kd1 {[%clk 0:00:11]}  a4 {[%clk 0:00:07]} 64. bxa4 {[%clk 0:00:11]}  Kxa4 {[%clk 0:00:08]} 65. Ke2 {[%clk 0:00:12]}  Kb4 {[%clk 0:00:09]} 66. Kf3 {[%clk 0:00:13]}  Kxc4 {[%clk 0:00:09]} 67. Re2 {[%clk 0:00:13]}  Kd3 {[%clk 0:00:09]} 68. Rxe7 {[%clk 0:00:13]}  c4 {[%clk 0:00:09]} 69. Re6 {[%clk 0:00:14]}  Bh5+ {[%clk 0:00:10]} 70. Kf4 {[%clk 0:00:14]}  c3 {[%clk 0:00:10]} 71. Rxd6 {[%clk 0:00:14]}  c2 {[%clk 0:00:11]} 72. Rc6 {[%clk 0:00:15]}  Bc3 {[%clk 0:00:10]} 73. Rd6+ {[%clk 0:00:15]}  Ke2 {[%clk 0:00:10]} 74. Re6+ {[%clk 0:00:15]}  Kf1 {[%clk 0:00:10]} 75. Ke4 {[%clk 0:00:14]}  c1=Q {[%clk 0:00:10]} 76. Kd5 {[%clk 0:00:15]}  Qd2+ {[%clk 0:00:11]} 77. Kc6 {[%clk 0:00:16]}  Bf3+ {[%clk 0:00:10]} 78. Kc7 {[%clk 0:00:15]}  Ba5+ {[%clk 0:00:10]} 79. Kc8 {[%clk 0:00:15]}  Qc3+ {[%clk 0:00:08]} 80. Kd7 {[%clk 0:00:15]}  Bg4 {[%clk 0:00:08]} 81. Ke7 {[%clk 0:00:15]}  Qc7+ {[%clk 0:00:08]} 82. Kf6 {[%clk 0:00:15]}  Bxe6 {[%clk 0:00:09]} 83. Kxe6 {[%clk 0:00:16]}  Qg7 {[%clk 0:00:09]} 84. Kf5 {[%clk 0:00:17]}  Kg2 {[%clk 0:00:09]} 85. a4 {[%clk 0:00:17]}  Kh3 {[%clk 0:00:08]} 86. g6 {[%clk 0:00:18]}  Bd8 {[%clk 0:00:08]} 87. Ke6 {[%clk 0:00:18]}  Qf6+ {[%clk 0:00:09]} 88. Kd5 {[%clk 0:00:19]}  Qxg6 {[%clk 0:00:09]} 89. Kc5 {[%clk 0:00:19]}  Qb6+ {[%clk 0:00:10]} 90. Kc4 {[%clk 0:00:20]}  Be7 {[%clk 0:00:10]} 91. a5 {[%clk 0:00:20]}  Qc5+ {[%clk 0:00:10]} 92. Kd3 {[%clk 0:00:20]}  Qxa5 {[%clk 0:00:10]} 93. Ke4 {[%clk 0:00:21]}  Qg5 {[%clk 0:00:09]} 94. Kf3 {[%clk 0:00:20]}  Qg3+ {[%clk 0:00:08]} 95. Ke4 {[%clk 0:00:21]}  Kg4 {[%clk 0:00:08]} 96. Kd5 {[%clk 0:00:21]}  Qf4 {[%clk 0:00:08]} 97. Ke6 {[%clk 0:00:22]}  Bh4 {[%clk 0:00:09]} 98. Kd7 {[%clk 0:00:22]}  Bg3 {[%clk 0:00:09]} 99. Ke8 {[%clk 0:00:23]}  Qe5+ {[%clk 0:00:09]} 100. Kf7 {[%clk 0:00:24]}  Qf5+ {[%clk 0:00:09]} 101. Kg8 {[%clk 0:00:24]}  Qd7 {[%clk 0:00:09]} 102. Kh8 {[%clk 0:00:25]}  Kf5 {[%clk 0:00:09]} 103. Kg8 {[%clk 0:00:25]}  Kg6 {[%clk 0:00:10]} 104. Kf8 {[%clk 0:00:26]}  Qf7# {[%clk 0:00:10]} 0-1


[Site "https://www.chess.com"]

[Event "Titled Tuesday Blitz March 07 Late 2023"]
[White "EREBUNI91"]
[Black "Beukes, Dante M"]
[BlackFideId "15200540"]
[WhiteElo "2749"]
[BlackElo "2199"]
[Result "1-0"]
[Round "01"]
[TimeControl "180+2"]
[Date "2023.03.07"]
[WhiteClock "0:00:14"]
[BlackClock "0:00:03"]

1. e4 {[%clk 0:03:00]}  c5 {[%clk 0:02:55]} 2. Nf3 {[%clk 0:03:01]}  d6 {[%clk 0:02:51]} 3. d4 {[%clk 0:02:59]}  cxd4 {[%clk 0:02:50]} 4. Nxd4 {[%clk 0:03:00]}  Nf6 {[%clk 0:02:49]} 5. Nc3 {[%clk 0:03:00]}  a6 {[%clk 0:02:50]} 6. Bg5 {[%clk 0:02:58]}  e6 {[%clk 0:02:49]} 7. f4 {[%clk 0:02:56]}  h6 {[%clk 0:02:48]} 8. Bh4 {[%clk 0:02:56]}  Qb6 {[%clk 0:02:48]} 9. Qd2 {[%clk 0:02:54]}  Qxb2 {[%clk 0:02:46]} 10. Rb1 {[%clk 0:02:53]}  Qa3 {[%clk 0:02:46]} 11. e5 {[%clk 0:02:41]}  dxe5 {[%clk 0:02:47]} 12. fxe5 {[%clk 0:02:42]}  Nfd7 {[%clk 0:02:45]} 13. Be2 {[%clk 0:02:17]}  Bc5 {[%clk 0:01:55]} 14. Nxe6 {[%clk 0:02:14]}  g5 {[%clk 0:01:09]} 15. Nc7+ {[%clk 0:01:53]}  Kd8 {[%clk 0:01:09]} 16. Nxa8 {[%clk 0:01:49]}  gxh4 {[%clk 0:01:07]} 17. Nb6 {[%clk 0:01:44]}  Bxb6 {[%clk 0:00:48]} 18. Rxb6 {[%clk 0:01:45]}  Nc6 {[%clk 0:00:48]} 19. Rb3 {[%clk 0:01:33]}  Qc5 {[%clk 0:00:46]} 20. Rf1 {[%clk 0:00:57]}  Nd4 {[%clk 0:00:31]} 21. Rb1 {[%clk 0:00:38]}  Qxe5 {[%clk 0:00:30]} 22. Rd1 {[%clk 0:00:34]}  Nxe2 {[%clk 0:00:15]} 23. Nxe2 {[%clk 0:00:35]}  f5 {[%clk 0:00:09]} 24. Qf4 {[%clk 0:00:32]}  Re8 {[%clk 0:00:09]} 25. Qxe5 {[%clk 0:00:27]}  Rxe5 {[%clk 0:00:10]} 26. Rf4 {[%clk 0:00:27]}  Kc7 {[%clk 0:00:11]} 27. Rxh4 {[%clk 0:00:27]}  Nf6 {[%clk 0:00:06]} 28. Rxh6 {[%clk 0:00:26]}  Ng4 {[%clk 0:00:07]} 29. Rh7+ {[%clk 0:00:25]}  Kb6 {[%clk 0:00:07]} 30. Rd3 {[%clk 0:00:17]}  Be6 {[%clk 0:00:06]} 31. Kd2 {[%clk 0:00:16]}  Bc4 {[%clk 0:00:05]} 32. Rd6+ {[%clk 0:00:15]}  Kc5 {[%clk 0:00:03]} 33. Rd3 {[%clk 0:00:14]}  Bxd3 {[%clk 0:00:02]} 34. cxd3 {[%clk 0:00:15]}  Nf2 {[%clk 0:00:03]} 35. d4+ {[%clk 0:00:14]} 1-0


[Site "https://www.chess.com"]

[Event "Titled Tuesday Blitz March 07 Late 2023"]
[White "dodoucb"]
[Black "Adewumi, Tanitoluwa"]
[BlackFideId "30966396"]
[WhiteElo "2416"]
[BlackElo "2746"]
[Result "0-1"]
[Round "01"]
[TimeControl "180+2"]
[Date "2023.03.07"]
[WhiteClock "0:00:11"]
[BlackClock "0:00:11"]

1. d4 {[%clk 0:02:59]}  Nf6 {[%clk 0:02:58]} 2. c4 {[%clk 0:03:00]}  e6 {[%clk 0:02:58]} 3. Nf3 {[%clk 0:03:00]}  b6 {[%clk 0:02:57]} 4. g3 {[%clk 0:02:58]}  Ba6 {[%clk 0:02:57]} 5. Nbd2 {[%clk 0:02:55]}  Bb4 {[%clk 0:02:43]} 6. e3 {[%clk 0:02:55]}  c6 {[%clk 0:02:15]} 7. a3 {[%clk 0:02:54]}  Bxd2+ {[%clk 0:02:07]} 8. Bxd2 {[%clk 0:02:53]}  d5 {[%clk 0:02:06]} 9. Qc2 {[%clk 0:02:41]}  O-O {[%clk 0:02:03]} 10. Rc1 {[%clk 0:02:38]}  Nbd7 {[%clk 0:01:58]} 11. Qa4 {[%clk 0:02:33]}  Bxc4 {[%clk 0:01:52]} 12. Bxc4 {[%clk 0:02:31]}  dxc4 {[%clk 0:01:53]} 13. Qxc4 {[%clk 0:02:32]}  c5 {[%clk 0:01:52]} 14. O-O {[%clk 0:02:31]}  cxd4 {[%clk 0:01:52]} 15. Qxd4 {[%clk 0:02:30]}  e5 {[%clk 0:01:49]} 16. Qh4 {[%clk 0:02:06]}  e4 {[%clk 0:01:42]} 17. Nd4 {[%clk 0:02:01]}  Ne5 {[%clk 0:01:42]} 18. Bb4 {[%clk 0:01:51]}  Re8 {[%clk 0:01:36]} 19. Rfd1 {[%clk 0:01:46]}  Qd7 {[%clk 0:01:36]} 20. Kg2 {[%clk 0:01:43]}  Nf3 {[%clk 0:01:14]} 21. Nxf3 {[%clk 0:01:34]}  exf3+ {[%clk 0:01:15]} 22. Kg1 {[%clk 0:01:35]}  Qf5 {[%clk 0:01:06]} 23. Bc3 {[%clk 0:01:27]}  Ne4 {[%clk 0:00:54]} 24. Bd4 {[%clk 0:01:02]}  Ng5 {[%clk 0:00:45]} 25. g4 {[%clk 0:00:54]}  Qg6 {[%clk 0:00:36]} 26. Qg3 {[%clk 0:00:53]}  h5 {[%clk 0:00:31]} 27. h4 {[%clk 0:00:29]}  Re4 {[%clk 0:00:23]} 28. gxh5 {[%clk 0:00:19]}  Qxh5 {[%clk 0:00:19]} 29. Kf1 {[%clk 0:00:19]}  Rg4 {[%clk 0:00:18]} 30. Qe5 {[%clk 0:00:19]}  f6 {[%clk 0:00:11]} 31. Qd5+ {[%clk 0:00:18]}  Kh7 {[%clk 0:00:11]} 32. Qxa8 {[%clk 0:00:16]}  Qxh4 {[%clk 0:00:11]} 33. Ke1 {[%clk 0:00:16]}  Ne4 {[%clk 0:00:12]} 34. Qxe4+ {[%clk 0:00:15]}  Rxe4 {[%clk 0:00:13]} 35. Kd2 {[%clk 0:00:15]}  Qxf2+ {[%clk 0:00:12]} 36. Kd3 {[%clk 0:00:15]}  f5 {[%clk 0:00:11]} 37. Rh1+ {[%clk 0:00:14]}  Kg8 {[%clk 0:00:11]} 38. Rc8+ {[%clk 0:00:13]}  Kf7 {[%clk 0:00:11]} 39. Rc7+ {[%clk 0:00:14]}  Re7 {[%clk 0:00:11]} 40. Rhc1 {[%clk 0:00:11]}  Qe2+ {[%clk 0:00:11]} 0-1


[Site "https://www.chess.com"]